bitfinex/quotes_ETHUSD_20250815
["timestamp","ask_amount","ask_price","bid_price","bid_amount"]
[1755283118453,1e-08,4422.4,4422.3,3.19610978]
[1755283118768,1e-08,4422.4,4422.3,2.37406676]
[1755283118970,1e-08,4422.4,4422.1,2.26136344]
[1755283118971,0.94910001,4422.4,4422.1,2.26136106]
[1755283119140,0.9491,4422.3,4422.2,2.26130878]
[1755283119471,0.9491,4422.3,4421.8,0.1128]
[1755283119668,0.9491,4422.2,4421.7,2.26157331]
[1755283119965,0.1128,4422.0,4421.7,2.26157331]
[1755283120174,0.1128,4422.0,4421.5,2.26163096]
[1755283120175,0.9491,4421.9,4421.5,2.26163096]
[1755283120332,0.1128,4422.0,4421.5,2.26163096]
[1755283120535,0.9491,4421.8,4421.6,2.26161803]
[1755283120766,0.9491,4421.7,4421.6,2.26161803]
[1755283121178,0.4949,4421.7,4421.6,2.26161803]
[1755283121371,0.1128,4422.0,4421.4,2.37449808]
[1755283121372,0.1128,4422.0,4421.9,2.26147131]
[1755283121952,0.6077,4422.0,4421.9,2.26147131]
[1755283122354,1.0619,4422.0,4421.9,2.26147131]
[1755283122553,1.0619,4422.0,4421.7,2.26152272]
[1755283122760,0.9491,4421.9,4421.5,2.26163436]
[1755283122950,0.1128,4422.0,4421.4,0.1128]
[1755283122951,0.9491,4421.8,4421.4,0.1128]
[1755283123147,0.9491,4421.7,4421.2,2.26179054]
[1755283123380,0.1128,4421.5,4421.2,2.26179054]
[1755283123681,1.0619,4421.5,4421.3,2.26173893]
[1755283123889,1.0619,4421.5,4421.4,2.26172705]
[1755283124087,2.26121583,4422.4,4421.2,0.1128]
[1755283124088,0.567,4421.9,4421.2,0.1128]
[1755283124282,0.567,4421.9,4421.6,2.26157748]
[1755283124581,0.9491,4421.8,4421.7,2.26156588]
[1755283125261,0.9491,4421.8,4421.6,2.26162201]
[1755283125462,0.4949,4421.7,4421.6,2.26162201]
[1755283126082,0.4949,4421.7,4421.4,2.26168935]
[1755283126282,0.1128,4421.9,4421.5,2.26165539]
[1755283126587,0.4949,4421.8,4421.2,3.6978]
[1755283127157,0.4949,4421.8,4421.3,2.26177197]
[1755283127552,0.1128,4421.6,4421.3,2.26177197]
[1755283127752,0.1128,4421.6,4421.4,2.26172194]
[1755283127983,0.9491,4421.5,4421.4,2.26172194]
[1755283128169,0.4949,4421.5,4421.4,2.26172194]
[1755283128752,0.4542,4421.9,4421.5,2.2616759]
[1755283128960,0.567,4421.8,4421.5,2.26166307]
[1755283129176,0.567,4421.8,4421.6,2.26161272]
[1755283129366,0.4949,4421.7,4421.5,2.26166047]
[1755283129562,0.4949,4421.7,4421.2,0.001]
[1755283129764,0.1128,4421.8,4421.7,2.2615736]
[1755283131388,1e-08,4422.4,4422.3,2.26126676]
[1755283131794,1e-08,4422.4,4422.2,0.1128]
[1755283132090,0.9491,4422.3,4422.2,2.26131789]
[1755283132294,0.11280001,4422.4,4421.6,3.584]
[1755283132295,1e-08,4422.4,4422.3,2.26126676]
[1755283132667,0.49490001,4422.4,4422.0,0.1128]
[1755283132889,0.9491,4422.3,4422.0,0.1128]
[1755283133259,1e-08,4422.4,4422.0,0.1128]
[1755283133260,0.9491,4422.2,4422.1,2.26135572]
[1755283133461,1e-08,4422.4,4421.7,2.2615736]
[1755283133686,1e-08,4422.4,4422.3,2.26126676]
[1755283134992,1e-08,4422.4,4422.3,2.82817942]
[1755283135180,0.002,4422.9,4422.3,2.82817942]
[1755283135181,0.002,4422.9,4422.4,2.26121562]
[1755283135379,0.002,4422.9,4422.8,2.37381112]
[1755283135579,0.002,4422.9,4422.8,3.19570357]
[1755283136390,0.002,4422.9,4422.8,3.57940357]
[1755283137901,0.002,4422.9,4422.8,7.16340357]
[1755283138499,0.002,4422.9,4422.8,6.77970357]
[1755283139394,0.002,4422.9,4422.8,3.19570357]
[1755283140501,0.4969,4422.9,4422.8,2.37381112]
[1755283140670,0.9511,4422.9,4422.2,2.26131789]
[1755283140870,0.9491,4422.8,4422.3,2.37405489]
[1755283141175,0.9491,4422.7,4421.9,3.583]
[1755283141365,0.1148,4422.9,4422.1,0.1128]
[1755283141569,0.9491,4422.6,4422.3,2.26126285]
[1755283141900,1.0619,4422.5,4422.3,2.26126285]
[1755283142202,0.9491,4422.4,4421.9,0.1128]
[1755283142567,0.1128,4422.5,4422.4,2.26121562]
[1755283142764,0.1128,4422.7,4422.6,2.26107106]
[1755283142974,0.002,4422.9,4422.6,2.26107349]
[1755283142975,0.1148,4422.9,4422.6,2.26107349]
[1755283143170,0.4949,4422.8,4422.5,2.26116449]
[1755283143385,0.9491,4422.8,4422.7,2.26106224]
[1755283143584,0.1148,4422.9,4422.3,0.1128]
[1755283143797,0.1148,4422.9,4422.4,0.02261215]
[1755283144228,0.002,4422.9,4422.7,2.26106224]
[1755283144517,0.002,4422.9,4422.8,2.28362123]
[1755283145212,0.002,4422.9,4422.8,5.84401112]
[1755283145395,0.002,4422.9,4422.8,6.22771112]
[1755283145568,0.002,4422.9,4422.8,7.18938846]
[1755283146297,0.002,4422.9,4422.8,7.73938846]
[1755283147089,0.002,4422.9,4422.8,7.78718846]
[1755283147700,0.002,4422.9,4422.8,7.73938846]
[1755283147903,1e-08,4422.9,4422.8,10.78718846]
[1755283148080,1e-08,4422.9,4422.8,10.73938846]
[1755283148495,1e-08,4422.9,4422.8,10.78718846]
[1755283148712,1e-08,4422.9,4422.8,10.73938846]
[1755283150474,1e-08,4422.9,4422.8,10.35568846]
[1755283151912,1e-08,4422.9,4422.8,10.73938846]
[1755283152328,1e-08,4422.9,4422.8,3.22268846]
[1755283152642,0.93090001,4422.9,4422.8,2.26101112]
[1755283152824,0.93090001,4422.9,4422.7,3.581]
[1755283153007,0.9309,4422.8,4422.5,5.84216447]
[1755283153193,1e-08,4422.9,4422.7,2.26101997]
[1755283153393,1e-08,4422.9,4422.5,5.84216447]
[1755283153823,0.9309,4422.8,4422.5,5.84216447]
[1755283153993,0.9309,4422.7,4422.5,3.581]
[1755283154193,0.9309,4422.6,4422.5,3.581]
[1755283154905,0.9309,4422.6,4422.2,5.8422795]
[1755283155227,0.9309,4422.5,4422.2,2.2612795]
[1755283155420,0.9309,4422.4,4422.2,2.2612795]
[1755283155612,0.9309,4422.3,4422.1,2.26136903]
[1755283155818,1e-08,4422.9,4422.4,2.26120718]
[1755283156127,1e-08,4422.9,4422.5,2.26115974]
[1755283156298,1e-08,4422.9,4422.2,3.581]
[1755283156299,1e-08,4422.9,4422.4,2.26120318]
[1755283156504,0.9309,4422.8,4422.4,2.26120318]
[1755283156705,0.9309,4422.7,4422.4,2.26120318]
[1755283156906,1e-08,4422.9,4422.4,2.26120318]
[1755283157222,0.9309,4422.6,4422.4,2.26120318]
[1755283157520,1e-08,4422.9,4422.4,2.26120318]
[1755283157521,0.9309,4422.5,4422.4,2.26120318]
[1755283157725,0.9309,4422.5,4421.6,0.001]
[1755283157929,0.9309,4422.4,4421.6,0.22726705]
[1755283158226,0.9309,4422.4,4422.3,2.26126676]
[1755283158722,0.9309,4422.4,4422.2,2.26130766]
[1755283158924,1e-08,4422.9,4422.3,2.26126183]
[1755283159222,0.22648614,4422.9,4422.0,3.581]
[1755283159422,1e-08,4422.9,4422.5,2.26113186]
[1755283159623,1e-08,4422.9,4422.6,2.26111205]
[1755283159624,0.4864,4422.8,4422.6,2.26111205]
[1755283159924,0.9309,4422.7,4422.3,2.2612641]
[1755283160121,1e-08,4422.9,4422.5,2.26111611]
[1755283160324,1e-08,4422.9,4421.6,0.001]
[1755283160325,0.9309,4422.6,4421.6,0.001]
[1755283160529,0.4864,4422.5,4421.6,3.582]
[1755283160824,0.9309,4422.5,4422.0,2.26140568]
[1755283161132,1.25009517,4422.5,4422.0,2.26140568]
[1755283161302,2.26100589,4422.9,4422.1,2.26135608]
[1755283161503,0.9309,4422.4,4422.2,2.26131485]
[1755283161703,0.9309,4422.3,4421.6,3.582]
[1755283162030,0.9309,4422.3,4422.0,2.26138254]
[1755283162236,2.26105703,4422.8,4422.0,2.26138254]
[1755283162438,0.9309,4422.2,4421.7,0.1128]
[1755283163117,0.1128,4422.3,4422.2,2.26131789]
[1755283163315,1.0437,4422.3,4422.2,2.26131789]
[1755283163726,0.5992,4422.3,4422.2,2.26131789]
[1755283163938,0.1128,4422.6,4422.3,2.26125805]
[1755283164153,0.4864,4422.5,4422.3,2.26125805]
[1755283164322,0.1128,4422.6,4422.3,2.26125805]
[1755283164639,0.1128,4422.6,4422.0,2.37417116]
[1755283164640,0.9309,4422.4,4422.1,2.2613208]
[1755283164830,0.9309,4422.3,4422.2,2.26131542]
[1755283168122,0.9309,4422.3,4422.0,0.1128]
[1755283168337,0.9309,4422.2,4421.7,2.26157193]
[1755283168637,0.9309,4422.1,4422.0,2.26142017]
[1755283169051,0.9309,4422.1,4421.8,2.26151259]
[1755283169345,0.9309,4422.0,4421.6,0.1138]
[1755283169551,0.4864,4421.9,4421.6,2.37541853]
[1755283169846,0.4864,4421.9,4421.8,2.26152245]
[1755283170049,0.4864,4421.9,4421.6,0.1138]
[1755283170227,0.9309,4421.8,4421.6,0.1138]
[1755283170544,0.1128,4422.2,4421.9,2.26142309]
[1755283170545,1.0437,4422.2,4421.9,2.26142309]
[1755283170852,0.9309,4422.1,4421.6,2.37542446]
[1755283171011,0.1128,4422.2,4421.6,2.37542446]
[1755283171210,0.4864,4422.0,4421.9,2.26147131]
[1755283171448,0.9309,4422.6,4422.1,2.26136903]
[1755283171645,0.1128,4422.4,4422.1,2.26136903]
[1755283171813,0.1128,4422.4,4422.2,2.26130148]
[1755283172014,1.0437,4422.4,4422.2,2.26130148]
[1755283172209,1.0437,4422.4,4421.6,0.1138]
[1755283172443,0.1128,4422.6,4421.9,0.1128]
[1755283172643,0.1128,4422.6,4421.9,3.6928]
[1755283173010,0.9309,4422.5,4421.9,2.37426209]
[1755283173316,0.9309,4422.4,4421.7,2.2615736]
[1755283173516,0.1128,4422.2,4421.6,2.37538797]
[1755283173911,0.9309,4422.1,4421.6,0.1138]
[1755283174110,0.4445,4422.0,4421.6,0.001]
[1755283174422,2.26153077,4421.8,4421.6,0.001]
[1755283175030,0.9309,4421.7,4421.6,0.001]
[1755283175616,3.1924736,4421.7,4421.6,0.001]
[1755283176760,6.1924736,4421.7,4421.6,0.001]
[1755283177063,2.26177821,4421.3,4421.2,0.001]
[1755283177378,2.26188052,4421.1,4421.0,0.001]
[1755283177887,6.19388052,4421.1,4421.0,0.001]
[1755283180665,9.77288052,4421.1,4421.0,0.001]
[1755283180964,7.511,4421.1,4421.0,0.001]
[1755283181136,8.49956393,4421.1,4421.0,0.001]
[1755283181467,10.76144445,4421.1,4421.0,0.001]
[1755283185236,7.18244445,4421.1,4421.0,0.001]
[1755283185570,10.76144445,4421.1,4421.0,0.001]
[1755283187776,11.79265698,4421.1,4421.0,1e-08]
[1755283187945,5.81198285,4420.9,4420.8,0.001]
[1755283188281,2.26228988,4420.3,4420.2,0.001]
[1755283188438,8.84028988,4420.3,4420.2,0.001]
[1755283188767,9.88508988,4420.3,4420.2,0.001]
[1755283190148,10.05856263,4420.3,4420.2,0.001]
[1755283190345,10.86538154,4420.3,4420.2,0.001]
[1755283190772,11.34625036,4420.3,4420.2,0.001]
[1755283190970,0.55,4419.7,4419.3,0.001]
[1755283191170,0.55,4419.7,4419.1,0.02]
[1755283191171,4.128,4419.6,4419.1,0.02]
[1755283191372,3.55,4419.3,4419.1,0.02]
[1755283191551,6.578,4419.2,4419.1,0.02]
[1755283191746,6.194853,4419.2,4419.1,0.02]
[1755283191962,9.772853,4419.2,4419.1,0.02]
[1755283193541,5.262853,4419.2,4419.1,0.02]
[1755283193741,8.840853,4419.2,4419.1,0.02]
[1755283194168,0.85667673,4419.5,4419.1,0.02]
[1755283194342,3.578,4419.4,4419.1,0.02]
[1755283194544,3.578,4419.3,4419.1,0.02]
[1755283194744,3.578,4419.2,4419.1,0.02]
[1755283196485,3.578,4419.2,4419.1,2.28290421]
[1755283196681,3.578,4419.2,4419.1,0.02]
[1755283196980,1.0,4419.2,4419.1,2.28390421]
[1755283197280,4.578,4419.2,4419.1,2.66760421]
[1755283197578,4.578,4419.2,4419.1,2.28390421]
[1755283197883,4.578,4419.2,4419.1,0.021]
[1755283198587,8.230653,4419.2,4419.1,0.021]
[1755283199856,5.5014,4419.2,4419.1,0.021]
[1755283200056,5.0358,4419.2,4419.1,0.021]
[1755283200404,4.578,4419.2,4419.1,2.28390421]
[1755283200604,4.578,4419.2,4419.1,2.66760421]
[1755283200956,1.0,4419.2,4419.1,2.66760421]
[1755283201164,1.0,4419.2,4419.1,2.72140421]
[1755283201362,1.0,4419.2,4419.1,3.23122439]
[1755283201669,1.0,4419.2,4419.1,3.17742439]
[1755283202421,1.0,4419.2,4419.1,3.23122439]
[1755283204290,1.0,4419.2,4419.1,3.17742439]
[1755283204587,1.0,4419.2,4419.1,0.021]
[1755283205461,4.307653,4419.2,4419.1,0.021]
[1755283205672,4.78908608,4419.2,4419.1,0.021]
[1755283206157,2.05983308,4419.2,4419.1,0.021]
[1755283206486,7.95389414,4419.2,4419.1,0.021]
[1755283206691,8.33188608,4419.2,4419.1,0.021]
[1755283208092,11.33188608,4419.2,4419.1,0.021]
[1755283208658,7.75488608,4419.2,4419.1,0.021]
[1755283208861,11.33188608,4419.2,4419.1,0.021]
[1755283209092,12.75150767,4419.2,4419.1,0.021]
[1755283211490,12.96050511,4419.2,4419.1,0.021]
[1755283213711,2.26300663,4418.9,4418.8,0.001]
[1755283213870,9.44092466,4418.9,4418.8,0.001]
[1755283214070,10.92125774,4418.9,4418.8,0.001]
[1755283214286,12.15369572,4418.9,4418.8,0.001]
[1755283216073,11.72149572,4418.9,4418.8,0.001]
[1755283216383,12.15369572,4418.9,4418.8,0.001]
[1755283217181,5.42858909,4418.9,4418.8,0.001]
[1755283217387,7.92123798,4418.9,4418.8,0.001]
[1755283217695,7.17023308,4418.9,4418.8,0.001]
[1755283217889,9.43323971,4418.9,4418.8,0.001]
[1755283218809,10.31933971,4418.9,4418.8,0.001]
[1755283219317,10.92125774,4418.9,4418.8,0.001]
[1755283222730,10.31933971,4418.9,4418.8,0.001]
[1755283222879,11.75807448,4418.9,4418.8,0.001]
[1755283223083,0.55,4418.7,4418.6,1e-08]
[1755283223306,0.55,4418.7,4418.1,0.02]
[1755283223307,2.26336517,4418.2,4418.1,0.02]
[1755283223502,2.26336517,4418.2,4417.9,0.001]
[1755283223503,2.81346763,4418.0,4417.9,0.001]
[1755283223825,7.07900486,4418.0,4417.9,0.001]
[1755283224024,7.07880474,4418.0,4417.9,0.001]
[1755283224238,8.76706712,4418.0,4417.9,0.001]
[1755283224385,7.1725701,4417.8,4417.7,0.001]
[1755283224732,44.14442661,4417.8,4417.7,0.001]
[1755283224888,45.03052661,4417.8,4417.7,0.001]
[1755283225085,46.23258341,4417.8,4417.7,0.001]
[1755283225286,46.80731639,4417.8,4417.7,1e-08]
[1755283227649,10.88999653,4416.2,4416.1,0.02]
[1755283227948,6.31109653,4416.2,4416.1,0.02]
[1755283228124,9.88609653,4416.2,4416.1,0.02]
[1755283228325,9.43343066,4416.2,4416.1,0.02]
[1755283228545,7.16904047,4416.2,4416.1,0.02]
[1755283228747,0.1136,4416.2,4416.1,0.02]
[1755283229051,0.1136,4416.2,4416.1,0.4037]
[1755283229350,3.575,4416.4,4416.1,0.4985]
[1755283229550,0.1136,4416.3,4416.2,0.3837]
[1755283229755,0.72918653,4417.7,4416.8,2.2640688]
[1755283229951,3.575,4417.6,4416.8,2.2640688]
[1755283230111,0.1136,4416.9,4416.8,2.2640688]
[1755283230317,3.6886,4416.9,4416.8,3.01682568]
[1755283230524,3.6886,4416.9,4416.8,0.4785]
[1755283230714,3.6886,4416.9,4416.8,2.64778259]
[1755283231146,0.1136,4416.9,4416.8,2.64778259]
[1755283231351,0.17090617,4416.9,4416.8,2.74258259]
[1755283231751,3.575,4417.1,4417.0,2.26398007]
[1755283232057,3.575,4417.1,4417.0,2.74248007]
[1755283233522,0.1128,4417.4,4417.2,2.26387756]
[1755283233723,3.575,4417.4,4417.3,2.26382631]
[1755283234217,3.575,4417.4,4417.3,2.64752631]
[1755283234421,0.1128,4417.8,4417.6,2.26362363]
[1755283234422,3.6868,4417.8,4417.6,2.26362363]
[1755283234644,3.6868,4417.8,4417.1,0.1128]
[1755283234645,3.6868,4417.8,4417.7,2.64732134]
[1755283234958,4.05548,4417.8,4417.7,2.64732134]
[1755283235355,3.86045582,4417.8,4417.7,2.64732134]
[1755283235547,3.574,4417.8,4417.7,2.64732134]
[1755283235954,0.1128,4418.2,4418.1,2.2634164]
[1755283236126,1.08443408,4418.5,4418.4,2.26326271]
[1755283236327,4.94233299,4418.5,4418.4,2.26326271]
[1755283236528,5.32376629,4418.5,4418.4,2.26326271]
[1755283236730,5.32376629,4418.5,4418.3,2.26331369]
[1755283237154,5.32376629,4418.5,4418.4,2.26326271]
[1755283237424,1.57866738,4418.5,4418.4,2.64696271]
[1755283237663,0.1128,4418.7,4418.6,2.26316027]
[1755283237664,3.574,4418.7,4418.6,2.26316027]
[1755283238540,3.574,4418.7,4418.3,0.1128]
[1755283238777,3.574,4418.7,4418.6,2.26316027]
[1755283239377,3.574,4418.7,4418.5,2.26320402]
[1755283240076,3.74510815,4418.7,4418.5,2.26320402]
[1755283240284,4.23020815,4418.7,4418.1,2.26337873]
[1755283240445,0.1128,4418.6,4418.0,0.1128]
[1755283240778,0.4332,4418.5,4418.0,0.1128]
[1755283240939,2.2634164,4418.1,4418.0,0.1128]
[1755283241145,6.7547164,4418.1,4417.0,2.26397925]
[1755283241399,6.7547164,4418.1,4417.2,2.26387005]
[1755283241400,0.1128,4417.3,4417.2,2.26387005]
[1755283241542,3.6858,4417.3,4417.2,2.26387005]
[1755283241742,3.6858,4417.3,4416.8,2.26408259]
[1755283241948,3.6858,4417.3,4417.1,2.26392583]
[1755283242160,2.26340468,4418.2,4417.4,2.26374439]
[1755283242473,0.1128,4417.7,4417.2,2.26383325]
[1755283242703,3.573,4417.6,4417.3,2.26381462]
[1755283242860,3.573,4417.6,4417.0,0.1128]
[1755283243060,4.0581,4417.6,4416.8,2.26405716]
[1755283243294,0.1128,4417.4,4417.1,2.26388705]
[1755283243596,0.9183,4417.3,4416.4,0.001]
[1755283243759,0.1128,4417.0,4416.7,2.2641275]
[1755283244456,0.1128,4417.0,4416.5,2.26423638]
[1755283244697,0.1128,4417.0,4416.7,2.26410335]
[1755283245504,0.1128,4417.0,4416.6,2.26418107]
[1755283245802,1.0311,4417.0,4416.6,2.26418107]
[1755283246007,0.5979,4417.0,4416.4,0.1146]
[1755283246201,0.4332,4416.9,4416.5,2.26421474]
[1755283246433,3.572,4416.8,4416.6,2.26417555]
[1755283246574,3.572,4416.8,4416.7,2.26413385]
[1755283246907,3.572,4416.9,4416.8,2.26408259]
[1755283247070,3.572,4416.9,4416.7,2.26412919]
[1755283247270,3.94048,4416.9,4416.7,2.26412919]
[1755283247498,2.26326271,4418.4,4417.0,2.26393045]
[1755283247809,0.1128,4417.4,4417.0,2.26393045]
[1755283248014,3.572,4417.3,4416.8,0.3837]
[1755283248169,0.17110815,4418.7,4418.6,2.26316027]
[1755283248373,0.17110815,4418.7,4417.0,3.55]
[1755283248374,0.1128,4418.7,4418.1,0.1128]
[1755283248572,0.1128,4418.7,4418.2,2.2633212]
[1755283248800,3.6848,4418.7,4418.2,2.2633212]
[1755283249203,4.1699,4418.7,4418.2,2.2633212]
[1755283249392,4.1699,4418.7,4418.1,0.1128]
[1755283249594,3.6848,4418.7,4418.2,2.26336517]
[1755283249778,3.6848,4418.7,4418.4,2.26324002]
[1755283250402,3.6848,4418.7,4418.3,2.26327434]
[1755283250596,3.8582507,4418.7,4418.3,2.26327434]
[1755283250796,0.4851,4418.6,4418.1,2.26340179]
[1755283250986,0.9183,4418.6,4418.1,2.26340179]
[1755283251182,0.4332,4418.6,4418.2,2.26336223]
[1755283251396,3.8582507,4418.7,4418.2,2.26335598]
[1755283252406,3.8582507,4418.7,4418.0,2.26346763]
[1755283252605,0.9183,4418.6,4417.9,0.1128]
[1755283253122,0.9183,4418.5,4417.9,0.1128]
[1755283253273,0.1128,4418.0,4417.6,2.26366913]
[1755283253473,4.4893,4417.9,4417.3,2.37658194]
[1755283253725,0.1128,4417.6,4417.0,0.1128]
[1755283253905,3.6838,4417.6,4417.5,2.26371263]
[1755283254298,3.6838,4417.6,4417.3,2.26378634]
[1755283254811,0.9183,4417.5,4416.4,0.001]
[1755283255116,0.1128,4417.0,4416.9,2.26401544]
[1755283256303,0.1128,4417.0,4416.8,2.26406858]
[1755283256509,0.1128,4417.0,4416.6,0.001]
[1755283257317,3.0,4418.6,4416.6,0.001]
[1755283257519,3.0,4418.6,4417.6,2.2636662]
[1755283257520,6.18156731,4418.4,4417.6,2.2636662]
[1755283257931,0.9183,4418.4,4417.8,2.26353164]
[1755283258119,3.571,4418.5,4417.9,2.26347807]
[1755283258328,0.60076021,4418.4,4417.8,2.26353341]
[1755283259536,0.60076021,4418.4,4417.2,0.3837]
[1755283259734,3.571,4418.5,4417.9,2.26351092]
[1755283259926,5.83424937,4418.5,4417.7,2.26359148]
[1755283260126,3.571,4418.5,4418.0,2.26343089]
[1755283260440,0.002,4418.8,4417.6,0.0948]
[1755283260638,0.002,4418.8,4418.6,2.26315177]
[1755283260813,0.002,4418.8,4418.7,2.26310905]
[1755283261354,0.002,4418.8,4417.7,5.8336076]
[1755283261552,0.002,4418.8,4418.5,2.26320117]
[1755283261734,0.002,4418.8,4417.8,0.63121076]
[1755283261735,0.002,4418.8,4418.6,2.2631217]
[1755283261910,0.002,4418.8,4418.3,2.26328368]
[1755283262252,0.002,4418.8,4418.3,2.48960426]
[1755283262407,0.002,4418.8,4418.3,2.26327589]
[1755283262603,0.002,4418.8,4417.0,0.680262]
[1755283262843,2.26316027,4418.6,4417.8,2.26352107]
[1755283263041,3.57,4418.5,4417.8,2.26352107]
[1755283263431,3.57,4418.5,4417.9,2.26351852]
[1755283263740,3.57,4418.5,4417.9,2.26351755]
[1755283265342,3.572,4418.5,4417.9,2.26351755]
[1755283265539,3.572,4418.5,4417.7,2.26361887]
[1755283265844,0.9183,4418.4,4417.8,2.26356634]
[1755283266138,0.9183,4418.4,4417.7,2.26361888]
[1755283266325,3.18157125,4418.4,4417.7,2.26361888]
[1755283267045,0.9183,4418.4,4417.8,2.26356258]
[1755283267211,3.18159875,4418.4,4417.6,2.26363224]
[1755283267408,0.1128,4418.3,4417.8,2.2635497]
[1755283267612,0.1128,4418.3,4417.9,2.2634809]
[1755283267837,0.1128,4418.3,4417.9,2.26350536]
[1755283268033,0.1128,4418.3,4418.0,2.26345119]
[1755283268347,0.1128,4418.3,4417.9,2.26351124]
[1755283269342,0.1128,4418.3,4418.0,2.26345136]
[1755283269553,0.1128,4418.3,4418.1,2.26340517]
[1755283269913,0.1128,4418.3,4417.8,2.2635241]
[1755283270114,0.1128,4418.3,4417.9,2.26350961]
[1755283270316,0.1128,4418.3,4418.0,2.26346173]
[1755283270615,0.1128,4418.3,4417.9,2.26350232]
[1755283271110,0.1128,4418.3,4418.0,2.26346041]
[1755283271754,3.572,4418.5,4418.3,2.26327712]
[1755283271755,3.6848,4418.5,4418.3,2.26327712]
[1755283271959,0.002,4418.5,4418.4,2.26326271]
[1755283272255,0.002,4418.5,4418.4,3.12225587]
[1755283272418,0.002,4418.5,4418.4,3.09962325]
[1755283272744,0.002,4418.5,4418.4,3.30722325]
[1755283275951,0.002,4418.5,4418.4,3.39789325]
[1755283276416,0.002,4418.5,4418.4,3.30309325]
[1755283277318,0.002,4418.5,4418.4,2.91939325]
[1755283278133,0.002,4418.5,4418.4,6.03373271]
[1755283278418,0.002,4418.5,4418.4,2.46673271]
[1755283278618,0.002,4418.5,4418.4,2.37606271]
[1755283280475,0.002,4418.5,4418.4,0.1128]
[1755283280620,0.9389,4418.5,4418.3,2.26327008]
[1755283280816,0.9369,4418.4,4417.9,0.1128]
[1755283281174,0.1128,4418.3,4418.2,2.26331968]
[1755283281824,0.002,4418.5,4418.4,2.26326271]
[1755283282571,0.002,4418.5,4418.4,6.23559533]
[1755283282866,0.002,4418.5,4418.4,6.21296271]
[1755283283152,0.002,4418.5,4418.4,9.21296271]
[1755283283532,0.002,4418.5,4418.4,8.82926271]
[1755283283846,0.4646,4418.5,4418.4,5.26326271]
[1755283284041,0.9389,4418.5,4418.4,5.26326271]
[1755283284241,0.9389,4418.5,4418.4,2.26326271]
[1755283286462,0.9389,4418.5,4418.2,0.1128]
[1755283286668,0.002,4418.5,4418.2,2.37615052]
[1755283286847,0.9369,4418.4,4418.2,0.1128]
[1755283287043,0.9369,4418.3,4418.1,2.26340271]
[1755283287388,0.9369,4418.2,4417.9,2.37629002]
[1755283287598,0.9369,4418.1,4418.0,2.26346763]
[1755283287742,0.9369,4418.1,4417.9,2.26351009]
[1755283287943,0.9369,4418.0,4417.7,2.37638141]
[1755283288273,0.9369,4418.0,4416.9,3.001]
[1755283288274,0.1128,4417.8,4417.3,2.26377596]
[1755283288569,0.9369,4417.7,4417.3,2.26382631]
[1755283288777,0.9369,4417.6,4417.2,2.3766764]
[1755283288980,0.1128,4417.8,4417.3,2.26382503]
[1755283289184,0.9369,4417.5,4417.3,2.26382503]
[1755283289366,0.1128,4417.8,4417.4,2.26377245]
[1755283289675,0.4743,4417.5,4417.4,2.26377245]
[1755283290053,0.9369,4417.5,4417.4,2.26377245]
[1755283290475,0.1128,4417.8,4417.4,2.26377245]
[1755283290772,0.9369,4417.7,4417.5,2.26372188]
[1755283291069,0.4743,4417.7,4417.5,2.26372188]
[1755283291275,0.4626,4417.6,4417.5,2.26372188]
[1755283291772,0.9369,4417.6,4417.5,2.26372188]
[1755283291978,0.4626,4417.6,4417.5,2.26372188]
[1755283292681,0.9369,4417.6,4417.4,2.263766]
[1755283292875,0.9369,4417.5,4417.4,2.263766]
[1755283293244,0.9369,4417.5,4417.3,2.26382203]
[1755283293445,0.9369,4417.4,4417.3,2.26382203]
[1755283294182,0.9369,4417.4,4416.9,3.566]
[1755283294183,0.9369,4417.4,4416.9,0.001]
[1755283294496,2.26392143,4417.2,4416.9,0.001]
[1755283294788,2.26393543,4417.1,4416.9,0.001]
[1755283294987,3.20083543,4417.1,4416.9,0.001]
[1755283295311,0.9369,4417.0,4416.9,0.001]
[1755283296042,1.10827778,4417.0,4416.9,0.001]
[1755283296589,3.37225785,4417.0,4416.9,0.001]
[1755283296749,4.06597935,4417.0,4416.9,0.001]
[1755283297572,57.93914667,4417.0,4416.9,0.001]
[1755283297900,57.93914667,4417.0,4416.6,1e-08]
[1755283297901,0.55,4416.8,4416.6,1e-08]
[1755283298102,35.81413385,4416.7,4416.6,1e-08]
[1755283298299,6.29290926,4416.7,4416.6,1e-08]
[1755283298501,9.77413385,4416.7,4416.6,1e-08]
[1755283299002,10.25237208,4416.7,4416.6,1e-08]
[1755283299202,7.02423308,4416.7,4416.6,1e-08]
[1755283299502,10.58923308,4416.7,4416.6,1e-08]
[1755283299967,11.06710041,4416.7,4416.6,1e-08]
[1755283300300,10.58923308,4416.7,4416.6,1e-08]
[1755283300670,5.32509923,4416.7,4416.6,1e-08]
[1755283300871,10.58923308,4416.7,4416.6,1e-08]
[1755283303912,4.37909923,4416.7,4416.6,1e-08]
[1755283304216,3.6786,4416.7,4416.6,1e-08]
[1755283304425,0.1136,4416.7,4416.6,1e-08]
[1755283304577,3.6786,4416.7,4416.6,1e-08]
[1755283304778,6.88873385,4416.7,4416.6,1e-08]
[1755283305626,9.88873385,4416.7,4416.6,1e-08]
[1755283305934,11.12114929,4416.7,4416.6,1e-08]
[1755283307283,11.12014929,4416.7,4416.6,1e-08]
[1755283308414,11.67014929,4416.7,4416.6,1e-08]
[1755283308584,2.81423638,4416.5,4416.4,0.001]
[1755283308786,4.909,4416.4,4416.1,0.021]
[1755283309002,3.6636,4416.2,4416.1,0.021]
[1755283309483,6.87399019,4416.2,4416.1,0.021]
[1755283311419,7.35107125,4416.2,4416.1,1e-08]
[1755283311914,12.79107125,4416.2,4416.1,1e-08]
[1755283312084,13.52979117,4416.2,4416.1,1e-08]
[1755283313093,45.06205131,4416.2,4416.1,1e-08]